bitfinex/quotes_SOLUSD_20240612
["timestamp","ask_amount","ask_price","bid_price","bid_amount"]
[1718169031912,2.4526,150.86,150.83,2.453]
[1718169034960,2.4525,150.87,150.83,2.453]
[1718169038253,2.4527,150.86,150.82,2.4532]
[1718169038431,2.4527,150.85,150.82,2.4532]
[1718169038631,7.3564,150.89,150.83,2.453]
[1718169038632,2.4525,150.87,150.83,2.453]
[1718169040058,2.4526,150.86,150.83,2.453]
[1718169040261,4.9056,150.85,150.79,18.1996]
[1718169040643,2.4531,150.83,150.79,18.1996]
[1718169040838,10.9031,150.83,150.79,18.1996]
[1718169041250,8.45,150.82,150.8,2.4535]
[1718169041459,2.4531,150.83,150.81,2.4534]
[1718169041460,8.45,150.83,150.81,2.4534]
[1718169041766,8.45,150.83,150.8,2.4535]
[1718169042560,8.45,150.81,150.78,9.0301]
[1718169042943,2.4532,150.82,150.79,2.4537]
[1718169043856,2.4531,150.83,150.79,2.4537]
[1718169044441,2.4531,150.83,150.8,2.4535]
[1718169044635,2.453,150.84,150.8,2.4535]
[1718169046567,2.4531,150.83,150.79,2.4536]
[1718169047164,2.453,150.84,150.8,2.4535]
[1718169047765,2.453,150.83,150.8,2.4535]
[1718169047959,2.453,150.84,150.8,2.4535]
[1718169049863,2.4528,150.85,150.81,2.4533]
[1718169050768,2.4529,150.84,150.81,2.4533]
[1718169051094,2.4529,150.84,150.8,2.4535]
[1718169051463,50.1549,150.87,150.78,6.5763]
[1718169051663,2.4529,150.84,150.79,2.4536]
[1718169054695,2.4531,150.83,150.78,9.0301]
[1718169056365,2.4531,150.83,150.79,2.4537]
[1718169056568,2.453,150.84,150.79,2.4537]
[1718169057268,27.2684,150.85,150.78,6.5763]
[1718169057464,4.9059,150.84,150.78,6.5763]
[1718169057688,4.9059,150.84,150.76,2.454]
[1718169058294,2.4533,150.82,150.77,2.454]
[1718169060301,2.4533,150.82,150.76,2.4541]
[1718169064489,2.4536,150.8,150.74,8.8618]
[1718169064775,2.4536,150.8,150.75,2.4543]
[1718169064991,8.45,150.77,150.75,2.4543]
[1718169066795,8.45,150.77,150.74,8.8617]
[1718169068483,8.45,150.77,150.75,2.4543]
[1718169068812,8.45,150.78,150.75,2.4543]
[1718169070688,34.6269,150.85,150.74,6.4073]
[1718169070889,19.91,150.83,150.75,8.45]
[1718169071103,8.45,150.78,150.75,2.4543]
[1718169071306,8.45,150.79,150.76,2.4542]
[1718169071488,8.45,150.8,150.76,2.4542]
[1718169071914,8.45,150.8,150.75,2.4543]
[1718169073206,8.45,150.79,150.75,2.4543]
[1718169074927,15.7106,150.86,150.8,2.4535]
[1718169075117,15.7106,150.86,150.77,12.27]
[1718169075118,2.4528,150.85,150.77,8.45]
[1718169075418,8.45,150.83,150.77,13.358]
[1718169075794,8.45,150.83,150.79,2.4536]
[1718169075998,2.4528,150.85,150.79,2.4536]
[1718169076305,2.4526,150.86,150.8,2.4534]
[1718169076503,8.45,150.84,150.8,2.4534]
[1718169077021,10.9027,150.85,150.8,2.4534]
[1718169077204,2.4526,150.86,150.8,2.4534]
[1718169077408,4.9045,150.88,150.79,8.9635]
[1718169077409,8.45,150.84,150.79,8.9635]
[1718169077612,2.4531,150.83,150.79,6.3398]
[1718169077809,285.296,150.94,150.82,13.5264]
[1718169078012,10.9017,150.92,150.86,10.9025]
[1718169078593,275.4905,150.94,150.85,2.4527]
[1718169078594,10.9018,150.91,150.85,2.4527]
[1718169078797,8.45,150.9,150.84,8.45]
[1718169078996,10.9025,150.87,150.81,32.9031]
[1718169079202,4.904,150.9,150.81,24.4531]
[1718169079203,10.9026,150.86,150.81,24.4531]
[1718169079420,10.9026,150.86,150.81,21.9998]
[1718169079626,10.9026,150.86,150.81,24.4531]
[1718169080127,10.9025,150.87,150.81,32.9031]
[1718169080426,10.9025,150.87,150.82,2.4532]
[1718169081122,10.9023,150.88,150.83,2.453]
[1718169081419,8.45,150.88,150.84,2.4528]
[1718169081926,8.45,150.89,150.85,2.4527]
[1718169082122,2.4523,150.88,150.83,2.453]
[1718169082315,10.9023,150.88,150.83,2.453]
[1718169082518,10.9023,150.88,150.82,10.9031]
[1718169082727,10.9023,150.88,150.83,8.45]
[1718169082922,2.4523,150.88,150.83,10.903]
[1718169083118,2.4524,150.87,150.82,2.4531]
[1718169083319,10.9023,150.88,150.82,10.9031]
[1718169083831,10.9026,150.86,150.81,21.9998]
[1718169084033,10.9026,150.86,150.81,30.4498]
[1718169084234,10.9026,150.86,150.81,21.9998]
[1718169085218,10.9032,150.82,150.77,22.6204]
[1718169085424,8.45,150.8,150.77,25.0744]
[1718169085626,8.45,150.8,150.77,22.6204]
[1718169085937,8.45,150.8,150.77,25.0744]
[1718169088426,8.45,150.8,150.77,9.0633]
[1718169088932,2.4532,150.82,150.77,9.0633]
[1718169090333,19.91,150.84,150.73,22.7386]
[1718169090533,2.4536,150.8,150.75,2.4543]
[1718169091533,2.4536,150.8,150.74,2.4544]
[1718169092413,2.4536,150.8,150.75,2.4543]
[1718169093331,2.4534,150.81,150.75,2.4543]
[1718169093534,19.91,150.82,150.77,2.4539]
[1718169093535,2.4532,150.82,150.77,2.4539]
[1718169093720,27.7931,150.83,150.78,2.4538]
[1718169094114,2.4533,150.82,150.77,2.454]
[1718169095848,2.4531,150.83,150.77,2.454]
[1718169096339,2.4531,150.83,150.78,2.4538]
[1718169096847,2.4528,150.85,150.8,2.4534]
[1718169098042,2.4528,150.85,150.79,2.4536]
[1718169098719,2.4529,150.84,150.79,2.4536]
[1718169099433,4.906,150.84,150.76,2.4541]
[1718169099620,2.4533,150.82,150.76,2.4541]
[1718169099934,2.4533,150.82,150.77,2.454]
[1718169100828,2.4531,150.83,150.78,2.4538]
[1718169103216,2.4529,150.84,150.79,2.4536]
[1718169105249,19.91,150.86,150.75,0.34]
[1718169105421,2.4533,150.82,150.77,2.454]
[1718169106880,2.4531,150.83,150.78,2.4538]
[1718169107525,2.453,150.84,150.79,2.4537]
[1718169108324,2.453,150.84,150.79,18.3391]
[1718169108719,2.453,150.83,150.79,18.3391]
[1718169108942,2.453,150.83,150.79,15.8854]
[1718169110852,8.45,150.81,150.79,15.8854]
[1718169111450,8.45,150.8,150.78,6.6299]
[1718169113535,4.9053,150.86,150.78,6.6299]
[1718169113740,8.45,150.82,150.79,2.4536]
[1718169113957,2.4529,150.84,150.79,2.4536]
[1718169114153,2.4528,150.85,150.8,2.4535]
[1718169114348,8.45,150.84,150.8,2.4535]
[1718169115240,10.9029,150.84,150.8,2.4535]
[1718169115453,10.9029,150.84,150.79,3.77974466]
[1718169115861,2.4529,150.84,150.8,2.4535]
[1718169116166,10.9029,150.84,150.79,3.77974466]
[1718169116464,10.9027,150.85,150.8,2.4535]
[1718169116638,8.45,150.85,150.81,2.4532]
[1718169117061,8.45,150.85,150.8,8.62]
[1718169117234,8.45,150.85,150.8,2.6234]
[1718169117235,10.9028,150.85,150.8,2.6234]
[1718169117649,10.9028,150.85,150.81,2.4533]
[1718169118467,8.45,150.85,150.81,2.4533]
[1718169119338,20.03556342,150.9,150.81,15.9259]
[1718169119570,8.45,150.85,150.81,15.9259]
[1718169119859,8.45,150.85,150.82,2.453]
[1718169120452,8.45,150.84,150.81,18.3792]
[1718169120764,8.45,150.84,150.81,15.9259]
[1718169121362,8.45,150.84,150.82,2.4532]
[1718169121941,8.45,150.84,150.81,18.3792]
[1718169122455,2.4526,150.86,150.81,18.3792]
[1718169123165,8.45,150.85,150.81,18.3792]
[1718169126459,8.45,150.84,150.81,18.3792]
[1718169126666,2.4526,150.86,150.81,18.3792]
[1718169126975,38.7046,150.88,150.81,18.3792]
[1718169126976,2.4527,150.85,150.81,18.3792]
[1718169127766,2.4526,150.86,150.81,18.3792]
[1718169128474,8.45,150.85,150.82,2.4532]
[1718169131077,27.2665,150.89,150.82,2.4532]
[1718169131257,8.45,150.85,150.82,2.4532]
[1718169131859,19.9,150.91,150.84,2.4528]
[1718169132058,8.45,150.88,150.84,2.4528]
[1718169132684,19.9,150.91,150.84,2.4528]
[1718169132865,8.45,150.88,150.84,2.4528]
[1718169133276,261.135,150.94,150.83,7.51048516]
[1718169133277,6.335,150.94,150.85,3.77770946]
[1718169133462,8.45,150.89,150.86,1.32492162]
[1718169133662,4.9023,150.95,150.88,2.4522]
[1718169133881,10.9015,150.93,150.88,2.4522]
[1718169134066,2.4515,150.93,150.88,2.4522]
[1718169134390,2.4515,150.93,150.88,2.4521]
[1718169134554,5.7643484,150.96,150.88,6.3482]
[1718169134755,2.4513,150.94,150.88,8.8003]
[1718169135264,39.5643484,150.96,150.88,8.8003]
[1718169135473,8.45,150.91,150.88,8.8003]
[1718169135784,8.45,150.92,150.88,8.8003]
[1718169136379,46.9173484,150.96,150.88,8.8003]
[1718169136380,8.45,150.94,150.9,2.4518]
[1718169137377,0.8623484,150.96,150.89,0.68]
[1718169137676,8.45,150.94,150.9,2.6218]
[1718169138187,8.45,150.93,150.89,2.792]
[1718169138357,2.4513,150.94,150.89,2.452]
[1718169138358,8.45,150.92,150.89,2.452]
[1718169138562,2.4512,150.95,150.9,2.4519]
[1718169138777,8.45,150.93,150.9,2.4519]
[1718169138965,8.45,150.93,150.91,2.4517]
[1718169139275,3.3133484,150.96,150.91,2.4517]
[1718169139478,8.45,150.94,150.91,2.4517]
[1718169140066,3.3133484,150.96,150.91,2.4517]
[1718169140366,8.45,150.95,150.9,8.45]
[1718169140571,10.9013,150.94,150.89,10.9019]
[1718169140769,10.9013,150.94,150.9,2.4519]
[1718169140972,10.9013,150.94,150.89,2.622]
[1718169141176,8.45,150.93,150.89,2.622]
[1718169142178,8.45,150.93,150.9,2.4519]
[1718169142564,2.4511,150.95,150.9,2.4519]
[1718169142565,8.45,150.94,150.9,2.4519]
[1718169142783,8.45,150.94,150.91,2.4517]
[1718169143281,10.9011,150.95,150.91,2.4517]
[1718169143984,10.9011,150.95,150.9,2.4518]
[1718169145494,2.4511,150.95,150.9,2.4518]
[1718169145791,10.9011,150.95,150.91,2.4517]
[1718169146377,2.4513,150.94,150.9,2.4518]
[1718169146889,10.9013,150.94,150.9,2.4518]
[1718169147279,2.4512,150.95,150.9,2.4518]
[1718169147474,8.45,150.94,150.9,2.4518]
[1718169147994,8.45,150.93,150.89,2.452]
[1718169148287,10.9014,150.93,150.88,9.3104]
[1718169149078,10.9014,150.93,150.89,2.452]
[1718169149593,8.45,150.93,150.89,2.452]
[1718169150694,8.45,150.93,150.9,2.4519]
[1718169150884,8.45,150.92,150.88,8.8004]
[1718169151083,8.45,150.91,150.88,8.8004]
[1718169151275,8.45,150.91,150.87,2.4523]
[1718169151276,10.9017,150.91,150.87,2.4523]
[1718169151677,8.45,150.91,150.87,2.4523]
[1718169151866,8.45,150.91,150.88,2.4522]
[1718169152072,8.45,150.92,150.88,2.4522]
[1718169153491,8.45,150.92,150.89,2.452]
[1718169153699,8.45,150.93,150.87,20.712]
[1718169153878,8.45,150.93,150.9,2.4518]
[1718169155391,2.4513,150.94,150.9,2.4518]
[1718169155778,10.9013,150.94,150.9,2.4518]
[1718169156497,8.45,150.93,150.88,8.45]
[1718169156715,2.4511,150.95,150.91,2.4516]
[1718169157010,10.9011,150.95,150.91,2.4516]
[1718169157201,8.45,150.94,150.91,2.4516]
[1718169157577,10.9011,150.95,150.91,2.4516]
[1718169157778,10.9011,150.95,150.89,13.8641]
[1718169157779,0.8623484,150.96,150.95,2.4511]
[1718169158083,0.8623484,150.96,150.93,15.1507]
[1718169158290,0.8623484,150.96,150.93,17.6021]
[1718169158897,0.8623484,150.96,150.93,15.1507]
[1718169159277,11.7633484,150.96,150.92,9.1066]
[1718169159478,10.9011,150.95,150.92,6.6551]
[1718169160879,8.45,150.95,150.92,6.6551]
[1718169161580,0.8623484,150.96,150.92,6.6551]
[1718169161782,0.8623484,150.96,150.93,2.4514]
[1718169162078,0.8623484,150.96,150.94,3.76155751]
[1718169162294,0.8623484,150.96,150.95,2.4511]
[1718169162699,0.8623484,150.96,150.94,2.4512]
[1718169163085,0.8623484,150.96,150.93,2.4513]
[1718169164083,0.8623484,150.96,150.95,2.4511]
[1718169165303,0.8623484,150.96,150.94,2.4512]
[1718169169211,0.8623484,150.96,150.95,2.4511]
[1718169170612,0.8623484,150.96,150.94,2.4512]
[1718169172715,0.8623484,150.96,150.95,2.4511]
[1718169174592,0.8623484,150.96,150.95,33.4712]
[1718169174791,0.8623484,150.96,150.95,33.6412]
[1718169175929,0.8623484,150.96,150.95,15.3867]
[1718169176100,0.8623484,150.96,150.95,23.8367]
[1718169176625,0.8623484,150.96,150.95,33.6412]
[1718169178229,0.8623484,150.96,150.95,15.3867]
[1718169178426,0.8623484,150.96,150.95,23.8367]
[1718169180023,0.8623484,150.96,150.95,15.3867]
[1718169180328,0.8623484,150.96,150.95,23.8367]
[1718169182310,0.8623484,150.96,150.95,15.3867]
[1718169183331,0.8623484,150.96,150.95,2.4511]
[1718169183830,0.8623484,150.96,150.95,7.5233]
[1718169184006,0.8623484,150.96,150.95,25.1912]
[1718169184207,0.8623484,150.96,150.95,53.6412]
[1718169185750,0.8623484,150.96,150.95,23.1567]
[1718169186116,0.8623484,150.96,150.95,14.7067]
[1718169187144,0.8623484,150.96,150.95,14.8767]
[1718169187731,0.8623484,150.96,150.95,24.8512]
[1718169187937,0.8623484,150.96,150.95,33.6412]
[1718169193850,0.8623484,150.96,150.95,53.6412]
[1718169194834,0.8623484,150.96,150.95,153.6412]
[1718169195443,0.8623484,150.96,150.95,168.9069]
[1718169197142,0.8623484,150.96,150.95,68.9069]
[1718169198244,0.8623484,150.96,150.95,168.9069]
[1718169200327,0.8623484,150.96,150.95,68.9069]
[1718169201554,0.8623484,150.96,150.95,168.9069]
[1718169206859,15.7654,151.05,151.02,2.4499]
[1718169207044,24.2154,151.05,151.0,8.45]
[1718169207252,2.4499,151.03,150.99,2.4504]
[1718169207756,10.8997,151.04,151.0,2.4503]
[1718169207962,8.45,151.04,151.01,2.4501]
[1718169208650,24.2154,151.05,151.02,2.4499]
[1718169209546,10.8997,151.04,151.0,2.7902]
[1718169211150,10.8997,151.04,151.01,2.4501]
[1718169211467,10.9,151.02,150.98,2.4506]
[1718169211654,8.45,151.01,150.99,2.4504]
[1718169212854,8.45,151.0,150.96,0.17]
[1718169213046,8.45,151.0,150.96,0.34]
[1718169213249,8.45,151.0,150.98,2.4506]
[1718169216064,8.45,151.0,150.97,2.4507]
[1718169216242,8.45,151.0,150.98,2.4506]
[1718169216444,8.45,151.0,150.97,2.4507]
[1718169216748,8.45,151.0,150.98,2.4506]
[1718169218573,52.8125,151.05,150.96,7.3527]
[1718169218574,15.7654,151.05,150.96,7.3527]
[1718169218745,8.45,151.01,150.99,2.4503]
[1718169219571,2.4497,151.04,151.0,2.4503]
[1718169219868,8.45,151.01,150.99,2.4504]
[1718169221540,8.45,151.0,150.99,2.4504]
[1718169223054,2.45,151.02,150.98,2.4506]
[1718169224168,2.4499,151.03,150.99,2.4504]
[1718169224671,8.45,151.0,150.97,2.4507]
[1718169224846,8.45,150.98,150.97,2.4507]
[1718169225847,2.4502,151.01,150.97,2.4507]
[1718169226050,8.45,150.98,150.97,2.4507]
[1718169226848,2.4502,151.01,150.97,2.4507]
[1718169227049,8.45,150.98,150.97,2.4507]
[1718169227263,8.45,150.98,150.96,2.4508]
[1718169228065,2.4502,151.01,150.96,2.4508]
[1718169228356,8.45,150.97,150.96,2.4508]
[1718169233276,2.4502,151.01,150.97,2.4507]
[1718169233579,8.45,150.98,150.97,2.4507]
[1718169235257,2.45,151.02,150.98,2.4506]
[1718169235485,8.45,150.99,150.98,2.4506]
[1718169235684,8.45,150.99,150.97,2.4507]
[1718169236058,8.45,150.98,150.97,2.4507]
[1718169236260,8.45,150.98,150.93,14.7085]
[1718169236481,8.45,150.97,150.95,2.451]
[1718169237787,8.45,150.97,150.96,2.4509]
[1718169245593,8.45,150.98,150.96,2.4509]
[1718169247102,2.45,151.02,150.95,4.9021]
[1718169247311,15.4911,151.03,150.98,2.4506]
[1718169247506,8.45,151.01,150.99,2.4503]
[1718169247807,8.45,151.01,151.0,2.4503]
[1718169248183,8.45,151.01,150.99,2.4504]
[1718169248383,8.45,151.0,150.99,2.4504]
[1718169248583,15.4911,151.03,150.99,2.4504]
[1718169248785,8.45,151.01,150.99,2.4504]
[1718169249084,8.45,151.01,150.98,2.4506]
[1718169249501,8.45,151.01,150.99,2.4504]
[1718169249909,8.45,151.01,150.98,2.4505]
[1718169250292,8.45,151.0,150.98,2.4505]
[1718169254391,8.45,151.01,150.98,2.4505]
[1718169255107,8.45,151.0,150.98,2.4505]
[1718169255414,8.45,150.99,150.95,2.451]
[1718169255605,8.45,150.98,150.95,2.451]
[1718169255811,8.45,150.96,150.91,4.9033]
[1718169255989,8.45,150.95,150.94,2.4513]
[1718169256185,8.45,150.96,150.93,2.4513]
[1718169257088,8.45,150.96,150.94,2.4512]
[1718169258823,8.45,150.95,150.89,10.9499]
[1718169259021,8.45,150.93,150.92,2.4515]
[1718169260496,10.9014,150.93,150.88,2.4521]
[1718169260704,8.45,150.9,150.88,2.4521]
[1718169262093,8.45,150.89,150.87,2.4523]
[1718169262398,8.45,150.88,150.86,2.4525]
[1718169262992,8.45,150.88,150.87,2.4524]
[1718169263208,8.45,150.88,150.86,2.4525]
[1718169265088,8.45,150.88,150.87,2.4524]
[1718169270809,8.45,150.88,150.86,2.4525]
[1718169271010,8.45,150.87,150.85,2.4526]
[1718169271215,8.45,150.86,150.85,2.4526]
[1718169272330,8.45,150.87,150.85,2.4526]
[1718169272826,8.45,150.86,150.84,2.4528]
[1718169273399,8.45,150.85,150.82,2.4531]
[1718169273615,8.45,150.83,150.82,2.4531]
[1718169273999,8.45,150.83,150.8,2.4535]
[1718169274404,8.45,150.82,150.8,2.4535]
[1718169276107,8.45,150.83,150.78,7.3614]
[1718169276429,8.45,150.83,150.79,0.34]
[1718169276619,8.45,150.83,150.79,5.2474]
[1718169277039,8.45,150.83,150.81,2.4533]
[1718169277223,2.4526,150.86,150.81,2.4533]
[1718169277431,8.45,150.84,150.81,2.4533]
[1718169277622,8.45,150.83,150.81,2.4533]
[1718169278026,8.45,150.83,150.8,2.4534]
[1718169278639,8.45,150.83,150.81,2.4533]
[1718169280516,8.45,150.83,150.8,2.4534]
[1718169282637,8.45,150.83,150.78,8.45]
[1718169282818,8.45,150.83,150.78,2.4537]
[1718169282819,8.45,150.82,150.78,2.4537]
[1718169283647,8.45,150.82,150.79,2.4536]
[1718169284354,8.45,150.82,150.78,2.4538]
[1718169284726,2.4531,150.83,150.79,2.4537]
[1718169285039,8.45,150.82,150.79,2.4537]
[1718169286433,38.7047,150.88,150.78,0.34]
[1718169286633,2.4525,150.87,150.82,2.4532]
[1718169286827,8.45,150.85,150.82,2.4532]
[1718169287440,8.45,150.85,150.81,2.4533]
[1718169288348,8.45,150.84,150.81,2.4533]
[1718169290042,8.45,150.88,150.79,0.34]
[1718169290254,8.45,150.83,150.79,2.6236]
[1718169290449,2.453,150.84,150.79,2.6236]
[1718169290643,8.45,150.83,150.79,2.6236]
[1718169291140,8.45,150.82,150.79,2.4536]
[1718169291533,8.45,150.81,150.78,2.4538]
[1718169292451,8.45,150.8,150.78,2.4538]
[1718169292636,8.45,150.8,150.77,8.4809]
[1718169293141,8.45,150.79,150.77,8.4809]
[1718169293337,8.45,150.79,150.78,2.4539]
[1718169293643,8.45,150.8,150.78,2.4539]
[1718169294044,8.45,150.8,150.77,2.4539]
[1718169294235,8.45,150.79,150.77,2.4539]
[1718169294832,2.4533,150.82,150.77,2.4539]
[1718169295040,8.45,150.8,150.77,2.4539]
[1718169295441,8.45,150.79,150.77,2.4539]
[1718169297739,8.45,150.8,150.77,2.4539]
[1718169298629,8.45,150.8,150.78,2.4538]
[1718169300141,8.45,150.8,150.77,2.4539]
[1718169302235,8.45,150.8,150.78,2.4538]
[1718169302436,18.1141,150.85,150.78,4.9078]
[1718169302739,8.45,150.83,150.81,2.4533]
[1718169303353,8.45,150.83,150.8,2.4534]
[1718169303861,8.45,150.82,150.79,2.4537]
[1718169305052,8.45,150.82,150.8,2.4535]
[1718169307082,61.0569,150.88,150.8,2.4535]
[1718169307083,16.0935,150.89,150.81,0.17]
[1718169307257,8.45,150.86,150.83,2.453]
[1718169307966,8.45,150.86,150.82,2.4531]
[1718169308741,2.4524,150.87,150.81,0.17]
[1718169308956,8.45,150.85,150.82,2.4532]
[1718169309151,2.4524,150.88,150.81,0.17]
[1718169309439,8.45,150.87,150.83,2.4529]
[1718169309749,8.45,150.87,150.84,2.4529]
[1718169310261,8.45,150.87,150.83,2.453]
[1718169310457,2.4521,150.89,150.84,3.55175469]
[1718169310760,8.45,150.88,150.84,3.55175469]
[1718169311469,2.4518,150.91,150.86,2.4525]
[1718169311642,8.45,150.92,150.88,2.4522]
[1718169311841,2.4513,150.94,150.89,3.55266359]
[1718169312063,2.4512,150.95,150.9,3.55300577]
[1718169312265,10.9013,150.94,150.9,1.10110577]
[1718169312665,2.4514,150.93,150.9,1.10110577]
[1718169314176,2.4513,150.94,150.9,1.10110577]
[1718169314348,4.9007,151.0,150.92,2.4515]
[1718169314552,10.9008,150.97,150.93,1.19500611]
[1718169314769,8.45,150.97,150.93,3.64630611]
[1718169315274,2.4505,150.99,150.94,3.64612693]
[1718169315477,8.45,150.98,150.94,3.64612693]
[1718169315681,10.9005,150.99,150.94,3.64612693]
[1718169315884,8.45,150.98,150.94,3.64612693]
[1718169316376,2.4504,151.0,150.95,2.4511]
[1718169316567,15.395,151.01,150.94,1.19492693]
[1718169316568,8.45,150.98,150.94,1.19492693]
[1718169317049,8.45,150.98,150.94,3.64612693]
[1718169317245,2.4504,151.0,150.95,2.4511]
[1718169317455,8.45,150.99,150.95,2.4511]
[1718169319761,2.4504,151.0,150.96,2.4509]
[1718169320075,8.45,150.99,150.96,2.4509]
[1718169321578,2.4502,151.01,150.94,8.62]
[1718169321878,41.1491,151.04,150.97,2.4507]
[1718169321879,2.45,151.02,150.97,2.4507]
[1718169322090,8.45,150.99,150.98,2.4506]
[1718169322257,2.45,151.02,150.97,2.4507]
[1718169322459,8.45,151.0,150.97,2.4507]
[1718169323850,63.4989,151.04,150.92,21.01]
[1718169324050,8.45,150.96,150.93,20.0]
[1718169324252,8.45,150.96,150.94,2.4513]
[1718169325371,8.45,150.96,150.95,2.4511]
[1718169325885,2.4503,151.0,150.95,2.4511]
[1718169326058,8.45,150.97,150.96,2.4509]
[1718169326460,2.45,151.02,150.94,17.3288]
[1718169326769,8.45,151.01,150.98,2.4505]
[1718169328188,15.6284,151.05,150.98,2.4505]
[1718169328189,2.45,151.02,150.98,2.4505]
[1718169328368,2.4498,151.03,150.99,2.4504]
[1718169328755,8.45,151.02,150.99,2.4504]
[1718169329180,8.45,151.02,150.98,2.4506]
[1718169330994,10.9,151.02,150.98,2.4506]
[1718169331176,10.9,151.02,150.96,13.5219]
[1718169331177,8.45,151.01,150.97,2.4507]
[1718169332579,8.45,150.99,150.96,2.4509]
[1718169332984,8.45,150.98,150.96,2.4509]
[1718169333992,8.45,150.97,150.95,6.3118]
[1718169334564,8.45,150.97,150.95,8.7628]
[1718169335089,2.4502,151.01,150.95,6.3118]
[1718169335280,33.8,151.04,150.95,6.3118]
[1718169335484,25.427,151.05,150.96,5.4118]
[1718169335485,2.4499,151.03,150.96,5.4118]
[1718169335788,8.45,151.01,150.99,2.4504]
[1718169338392,8.45,151.01,150.98,2.4505]
[1718169339498,8.45,151.01,150.99,2.4504]
[1718169339683,2.4499,151.03,150.99,2.4504]
[1718169339887,8.45,151.01,150.99,2.4504]
[1718169340371,8.45,151.02,150.99,2.4504]
[1718169341181,10.9,151.02,150.98,2.4505]
[1718169342387,8.45,151.02,150.99,2.4504]
[1718169343084,2.4496,151.05,150.98,13.6912]
[1718169343290,10.8997,151.04,151.0,2.4503]
[1718169343797,2.4497,151.04,151.0,2.4503]
[1718169344003,10.8997,151.04,151.0,2.4503]
[1718169344868,2.4498,151.03,150.99,2.4504]
[1718169345177,10.8998,151.03,150.99,2.4504]
[1718169347886,8.45,151.02,150.99,2.4504]
[1718169348503,10.9,151.02,150.98,2.4505]
[1718169348997,8.45,151.01,150.98,2.4505]
[1718169351206,12.2477,151.05,150.95,6.3118]
[1718169351207,7.3491,151.04,150.95,6.3118]
[1718169351501,8.45,150.98,150.95,6.3118]
[1718169351704,8.45,150.98,150.95,8.7628]
[1718169351879,8.45,150.97,150.95,8.7628]
[1718169352081,8.45,150.97,150.96,2.4509]
[1718169352982,8.45,150.98,150.96,2.4509]
[1718169353292,8.45,150.98,150.97,2.4508]
[1718169355683,2.4502,151.01,150.97,2.4508]
[1718169355882,8.45,150.98,150.97,2.4508]
[1718169356491,2.4502,151.01,150.97,2.4508]
[1718169356811,8.45,150.98,150.97,2.4508]
[1718169357312,2.4502,151.01,150.97,2.4508]
[1718169357313,8.45,150.99,150.97,2.4508]
[1718169358019,2.4502,151.01,150.97,2.4508]
[1718169358197,8.45,151.0,150.99,2.4504]
[1718169358399,23.1879,151.06,150.97,4.9015]
[1718169358710,8.45,151.02,151.0,2.4503]
[1718169358919,8.45,151.02,150.97,4.9015]
[1718169359128,8.45,151.02,150.99,2.4504]
[1718169360110,2.4498,151.03,150.99,2.4504]
[1718169360309,2.4497,151.04,151.0,2.4503]
[1718169360499,8.45,151.03,151.0,2.4503]